[Event "6th Tulsi Lal Memorial NTCC 2080"]
[Site "Lalitpur"]
[Date "2024.01.10"]
[Round "4.6"]
[White "Paudel, Yubraj"]
[Black "Chaudhary, Sushil"]
[Result "0-1"]
[ECO "E73"]
[WhiteElo "1872"]
[BlackElo "1769"]
[Annotator "NA RC COMBH"]
[PlyCount "86"]
[EventDate "2024.01.03"]
[EventType "team-tourn"]
[EventCountry "NEP"]
[SourceTitle "playchess.com"]
[Source "ChessBase"]
[SourceQuality "1"]
[TimeControl "5400+30"]

1. d4 {[%emt 1:31:00]} Nf6 2. c4 {[%emt 0:00:00]} g6 {[%emt 0:00:23]} 3. Nc3 {[%emt 0:00:00]} Bg7 {[%emt 0:00:36]} 4. e4 {[%emt 0:00:00]} d6 {[%emt 0:00:04]} 5. Be2 {[%emt 0:00:00]} O-O {[%emt 0:01:10]} 6. Be3 {[%emt 0:00:00]} Nc6 {[%emt 0:03:56] 6...Na6 is the modern continuation.} 7. d5 {[%emt 0:00:00]} Nb8 {[%emt 0:02:15]} 8. g4 {[%emt 0:00:00]} c5 {[%emt 0:04:57] [#]} 9. g5 $146 {[%emt 0:00:00]} ({Predecessor:} 9. h4 Qa5 10. Bd2 Bd7 11. h5 Na6 12. f4 Qd8 13. f5 Nc7 14. Qc1 e6 15. hxg6 fxg6 {1-0 Tokarz,I (1931)-Kawa,A (1622) Wch U16 Girls 2023 (1)}) 9... Ne8 {[%emt 0:04:10]} 10. h4 {[%emt 0:00:00]} e6 {[%emt 0:14:38]} 11. Nh3 {[%emt 0:00:00]} e5 {[%emt 0:04:15]} 12. h5 {[%emt 0:00:00]} a6 {[%emt 0:03:20]} 13. a4 {[%emt 0:00:00]} a5 {[%emt 0:00:43]} 14. f3 {[%emt 0:00:00]} Na6 {[%emt 0:00:43]} 15. Nf2 {[%emt 0:00:00]} f5 {[%emt 0:14:52]} 16. gxf6 {[%emt 0:00:00]} Nxf6 {[%emt 0:03:11]} 17. h6 {[%emt 0:00:00]} Bh8 {[%emt 0:00:28]} 18. Bg5 {[%emt 0:00:00]} Nb4 {[%emt 0:02:17]} 19. Kd2 {[%emt 0:00:00]} Bd7 {[%emt 0:03:52]} 20. Qg1 {[%emt 0:00:00]} Rf7 {[%emt 0:02:49]} 21. Bf1 {[%emt 0:00:00]} Qb6 {[%emt 0:03:59]} 22. Nb5 {[%emt 0:00:00]} Raf8 {[%emt 0:01:48]} 23. Ra3 {[%emt 0:00:00]} Ne8 {[%emt 0:04:58]} 24. Bh3 {[%emt 0:00:00]} Bxh3 {[%emt 0:01:27]} 25. Rxh3 {[%emt 0:00:00]} Bf6 {[%emt 0:00:51]} 26. Rg3 {[%emt 0:00:00]} Qd8 {[%emt 0:01:53]} 27. Nh3 {[%emt 0:00:00]} Kh8 {[%emt 0:05:29]} 28. Bxf6+ {[%emt 0:00:00]} Nxf6 {[%emt 0:00:47]} 29. Ng5 {[%emt 0:00:21]} Re7 {[%emt 0:00:40]} 30. Ne6 {[%emt 0:01:17]} Rxe6 {[%emt 0:00:37]} 31. dxe6 {[%emt 0:00:02]} Nh5 {[%emt 0:01:11]} 32. Nc3 {[%emt 0:07:02]} Nf4 {[%emt 0:02:25]} 33. Nd5 {[%emt 0:01:19]} Nxe6 {[%emt 0:00:24]} 34. Rg4 {[%emt 0:01:03]} Nd4 {[%emt 0:00:43]} 35. f4 {[%emt 0:00:27]} Nxd5 {[%emt 0:00:13]} 36. exd5 $19 {[%emt 0:00:39]} exf4 {[%emt 0:00:19]} 37. Rd3 {[%emt 0:01:26]} Qf6 {[%emt 0:00:36]} 38. Qe1 {[%emt 0:02:32]} f3 {[%emt 0:01:36]} 39. Qf2 {[%emt 0:00:31]} Re8 {[%emt 0:02:04]} 40. Re3 {[%emt 0:01:17]} Rf8 {[%emt 0:00:22]} 41. Rge4 {[%emt 0:01:03]} Qg5 {[%emt 0:00:34]} 42. Kc3 {[%emt 0:00:58]} Qxh6 {[%emt 0:00:24]} 43. Rh4 {[%emt 0:01:03]} Qg7 {[%emt 0:00:30]} 0-1

[Event "6th Tulsi Lal Memorial NTCC 2080"]
[Site "Lalitpur"]
[Date "2024.01.10"]
[Round "4.7"]
[White "Subba, Shem"]
[Black "Belbase, Kushal"]
[Result "1-0"]
[ECO "D73"]
[WhiteElo "1658"]
[BlackElo "1520"]
[Annotator "NA RC COMBH"]
[PlyCount "81"]
[EventDate "2024.01.03"]
[EventType "team-tourn"]
[EventCountry "NEP"]
[SourceTitle "playchess.com"]
[Source "ChessBase"]
[SourceQuality "1"]
[TimeControl "5400+30"]

1. d4 {[%emt 1:31:00]} Nf6 {[%emt 0:00:33]} 2. Nf3 {[%emt 0:00:00]} c6 {[%emt 0:01:01]} 3. c4 {[%emt 0:00:00]} d5 {[%emt 0:00:45]} 4. Nc3 {[%emt 0:00:00]} g6 {[%emt 0:00:09]} 5. g3 {[%emt 0:00:00]} Bg7 {[%emt 0:01:33]} 6. Bg2 {[%emt 0:00:00]} O-O {[%emt 0:01:20]} 7. b3 {[%emt 0:00:00]} Qa5 {[%emt 0:01:52]} 8. Bd2 {[%emt 0:00:00]} Qd8 {[%emt 0:03:09]} 9. O-O {[%emt 0:00:00]} Ne4 {[%emt 0:04:05]} 10. e3 {[%emt 0:00:00]} Nxd2 {[%emt 0:07:54]} 11. Qxd2 {[%emt 0:00:00]} Na6 {[%emt 0:11:29]} 12. cxd5 {[%emt 0:00:00]} cxd5 {[%emt 0:01:12]} 13. Rfc1 {[%emt 0:00:00]} Nb4 {[%emt 0:05:41]} 14. Ne1 {[%emt 0:00:00]} e6 {[%emt 0:03:28]} 15. a3 {[%emt 0:00:00]} Nc6 {[%emt 0:00:17]} 16. b4 {[%emt 0:00:00]} h5 {[%emt 0:04:48]} 17. h4 {[%emt 0:00:00]} Ne7 {[%emt 0:04:38]} 18. Nd3 {[%emt 0:00:00]} Nf5 {[%emt 0:03:13]} 19. Bh3 {[%emt 0:00:00]} Nd6 {[%emt 0:02:07]} 20. Qe2 {[%emt 0:00:00]} b6 {[%emt 0:03:34]} 21. a4 {[%emt 0:00:00]} Bb7 {[%emt 0:02:51]} 22. a5 {[%emt 0:00:00]} Ba6 {[%emt 0:04:53]} 23. Qd2 {[%emt 0:00:00]} bxa5 {[%emt 0:02:56]} 24. Nc5 {[%emt 0:00:00]} axb4 {[%emt 0:01:39]} 25. Nxd5 {[%emt 0:00:00]} exd5 {[%emt 0:13:20]} 26. Nxa6 {[%emt 0:00:00]} b3 {[%emt 0:01:33]} 27. Qc3 {[%emt 0:00:00]} Ne4 {[%emt 0:05:46]} 28. Qxb3 {[%emt 0:00:00]} g5 {[%emt 0:00:45]} 29. Bf5 {[%emt 0:00:00]} gxh4 {[%emt 0:01:41]} 30. Nc7 {[%emt 0:00:00]} hxg3 {[%emt 0:04:56]} 31. Bxe4 {[%emt 0:00:00]} dxe4 {[%emt 0:01:19]} 32. Nxa8 {[%emt 0:04:28]} Qh4 {[%emt 0:00:26]} 33. fxg3 {[%emt 0:00:15]} Qxg3+ {[%emt 0:00:10]} 34. Kf1 {[%emt 0:00:53]} Qf3+ {[%emt 0:00:59]} 35. Kg1 {[%emt 0:00:39]} Bxd4 {[%emt 0:00:34]} 36. Ra3 Bf6 {[%emt 0:01:16]} 37. Ra2 {[%emt 0:02:09]} Kh8 {[%emt 0:00:27]} 38. Rg2 {[%emt 0:00:18]} Bh4 {[%emt 0:00:37]} 39. Rf1 {[%emt 0:00:19]} Qh3 {[%emt 0:00:27]} 40. Rxf7 {[%emt 0:04:21]} Rxf7 {[%emt 0:00:30]} 41. Qb8+ {[%emt 0:00:15]} 1-0

[Event "6th Tulsi Lal Memorial NTCC 2080"]
[Site "Lalitpur"]
[Date "2024.01.10"]
[Round "4.8"]
[White "Shrestha, Riya"]
[Black "Shah, Anup Jung"]
[Result "1/2-1/2"]
[ECO "B25"]
[WhiteElo "1256"]
[BlackElo "1513"]
[Annotator "NA RC COMBH"]
[PlyCount "89"]
[EventDate "2024.01.03"]
[EventType "team-tourn"]
[EventCountry "NEP"]
[SourceTitle "playchess.com"]
[Source "ChessBase"]
[SourceQuality "1"]
[TimeControl "5400+30"]

1. e4 {[%emt 0:00:00]} c5 {[%emt 0:00:00]} 2. Nc3 {[%emt 0:00:06]} d6 {[%emt 0:00:11]} 3. g3 {[%emt 1:31:54]} g6 4. Bg2 {[%emt 0:00:00]} Bg7 {[%emt 0:01:02]} 5. Nge2 {[%emt 0:00:00]} Nc6 {[%emt 0:00:53]} 6. O-O {[%emt 0:00:00]} Nf6 {[%emt 0:01:12]} 7. h3 {[%emt 0:00:00]} Bd7 {[%emt 0:01:26]} 8. d3 {[%emt 0:00:00]} Qc8 {[%emt 0:01:25]} 9. Kh2 {[%emt 0:00:00]} h5 {[%emt 0:02:40]} 10. Nf4 {[%emt 0:00:00]} h4 {[%emt 0:06:34]} 11. g4 {[%emt 0:00:00]} Nxg4+ {[%emt 1:20:37]} 12. hxg4 {[%emt 0:00:00]} Bxg4 {[%emt 0:00:00]} 13. f3 {[%emt 0:00:00]} Bd7 {[%emt 0:00:00]} 14. Rh1 {[%emt 0:00:00]} g5 {[%emt 0:00:00]} 15. Nfd5 {[%emt 0:00:00]} Bxc3 {[%emt 0:00:00]} 16. bxc3 {[%emt 0:00:00]} g4 {[%emt 0:00:00]} 17. fxg4 {[%emt 0:00:00]} Bxg4 {[%emt 0:00:00]} 18. Bf3 {[%emt 0:00:00]} Ne5 {[%emt 0:00:00]} 19. Bxg4 {[%emt 0:00:00]} Nxg4+ {[%emt 0:00:00]} 20. Kg1 {[%emt 0:00:00]} Nf6 {[%emt 0:00:00]} 21. Nxf6+ {[%emt 0:00:00]} exf6 {[%emt 0:00:00]} 22. Qf3 {[%emt 0:00:00]} Ke7 {[%emt 0:00:00]} 23. Kf2 {[%emt 0:00:00]} Qg8 {[%emt 0:00:00]} 24. Bf4 {[%emt 0:00:00]} b6 {[%emt 0:00:00]} 25. Rag1 {[%emt 0:00:00]} Qe8 {[%emt 0:00:00]} 26. Rg4 {[%emt 0:00:00]} Qa4 {[%emt 0:00:00]} 27. Qe2 {[%emt 0:00:00]} Qxa2 {[%emt 0:00:00]} 28. Rhxh4 {[%emt 0:00:00]} a5 {[%emt 0:00:00]} 29. c4 {[%emt 0:01:06]} a4 {[%emt 0:00:00]} 30. Rxh8 {[%emt 0:02:08]} Rxh8 {[%emt 0:00:00]} 31. Rg1 {[%emt 0:00:41]} Qb2 {[%emt 0:00:00]} 32. Qd2 {[%emt 0:03:27]} Qd4+ {[%emt 0:00:00]} 33. Be3 {[%emt 0:00:55]} Rh2+ {[%emt 0:00:00]} 34. Rg2 {[%emt 0:00:27]} Rxg2+ {[%emt 0:00:00]} 35. Kxg2 {[%emt 0:00:05]} Qa1 {[%emt 0:12:00]} 36. Qc1 {[%emt 0:00:53]} Qa2 {[%emt 0:00:30]} 37. Bd2 {[%emt 0:01:00]} a3 {[%emt 0:00:00]} 38. Bc3 {[%emt 0:00:27]} Ke6 {[%emt 0:00:00]} 39. Kf3 {[%emt 0:00:55]} f5 {[%emt 0:00:00]} 40. exf5+ {[%emt 0:00:24]} Kxf5 {[%emt 0:00:00]} 41. Qf4+ {[%emt 0:01:29]} Ke6 {[%emt 0:00:00]} 42. Qf6+ {[%emt 0:00:54]} Kd7 {[%emt 0:00:00]} 43. Qxf7+ {[%emt 0:00:44]} Kc6 {[%emt 0:00:00]} 44. Qd5+ {[%emt 0:01:18]} Kc7 {[%emt 0:00:00]} 45. Qf7+ {[%emt 0:00:39]} 1/2-1/2

[Event "6th Tulsi Lal Memorial NTCC 2080"]
[Site "Lalitpur"]
[Date "2024.01.10"]
[Round "5.1"]
[White "Jaiswal, Rupesh"]
[Black "Bhandari, Kshitiz"]
[Result "1/2-1/2"]
[ECO "A48"]
[WhiteElo "2009"]
[BlackElo "2061"]
[Annotator "RC"]
[PlyCount "144"]
[EventDate "2024.01.03"]
[EventType "team-tourn"]
[EventCountry "NEP"]
[SourceTitle "playchess.com"]
[Source "ChessBase"]
[SourceQuality "1"]
[TimeControl "5400+30"]

1. d4 {[%emt 0:00:00]} Nf6 {[%emt 0:00:00]} 2. Bf4 {[%emt 0:00:03]} d6 {[%emt 0:00:15]} 3. e3 {[%emt 0:00:30]} g6 {[%emt 0:00:30]} 4. Nf3 {[%emt 0:00:30]} Bg7 5. h3 O-O {[%emt 0:00:43]} 6. Be2 {[%emt 0:00:31]} c5 {[%emt 0:00:06]} 7. c3 {[%emt 0:00:32]} cxd4 {[%emt 0:00:31]} 8. exd4 {[%emt 0:00:21]} Nc6 {[%emt 0:01:10]} 9. O-O {[%emt 0:01:02]} Nd5 {[%emt 0:03:23]} 10. Bh2 {[%emt 0:01:19]} e5 {[%emt 0:01:09]} 11. dxe5 {[%emt 0:05:12]} dxe5 {[%emt 0:00:20]} 12. Bc4 {[%emt 0:00:10]} Nb6 {[%emt 0:07:22]} 13. Bb3 {[%emt 0:02:01]} Bf5 {[%emt 0:03:47]} 14. Qxd8 {[%emt 0:12:14]} Raxd8 {[%emt 0:00:08]} 15. Na3 {[%emt 0:00:02]} e4 {[%emt 0:09:51]} 16. Ne1 {[%emt 0:02:27]} Na5 {[%emt 0:06:45]} 17. Nec2 {[%emt 0:03:32]} Nxb3 {[%emt 0:07:54]} 18. axb3 {[%emt 0:00:02]} Be6 {[%emt 0:00:15]} 19. b4 {[%emt 0:11:04]} Na4 {[%emt 0:04:32]} 20. Rfb1 {[%emt 0:06:20]} a6 {[%emt 0:14:05]} 21. Bf4 {[%emt 0:01:59]} f5 {[%emt 0:07:50]} 22. g3 {[%emt 0:01:49]} Bf6 {[%emt 0:00:56]} 23. h4 {[%emt 0:03:06]} Rd3 {[%emt 0:09:51]} 24. Ne1 {[%emt 0:02:39]} Rd7 {[%emt 0:00:04]} 25. Be3 {[%emt 0:02:15]} Nxb2 {[%emt 0:05:00]} 26. Rxb2 {[%emt 0:04:38]} Bxc3 {[%emt 0:00:07]} 27. Rbb1 {[%emt 0:00:09]} Bxa1 {[%emt 0:00:13]} 28. Rxa1 {[%emt 0:00:04]} Rfd8 {[%emt 0:00:11]} 29. Kf1 {[%emt 0:01:39]} Rd1 {[%emt 0:00:16]} 30. Rxd1 {[%emt 0:00:26]} Rxd1 {[%emt 0:00:02]} 31. Ke2 {[%emt 0:00:25]} Bb3 {[%emt 0:03:20]} 32. Nac2 {[%emt 0:00:49]} Rd5 {[%emt 0:00:43]} 33. Nd4 {[%emt 0:00:49]} Bc4+ {[%emt 0:02:02]} 34. Kd2 {[%emt 0:00:07]} a5 {[%emt 0:00:05]} 35. Kc3 {[%emt 0:00:26]} Bf1 {[%emt 0:01:33]} 36. bxa5 {[%emt 0:00:12]} Rxa5 {[%emt 0:00:01]} 37. Nec2 {[%emt 0:00:12]} Rc5+ {[%emt 0:01:15]} 38. Kb4 {[%emt 0:00:37]} Rc4+ {[%emt 0:02:27]} 39. Kb3 {[%emt 0:00:09]} Kf7 {[%emt 0:01:07]} 40. Na3 {[%emt 0:01:30]} Rc8 {[%emt 0:00:14]} 41. Kb4 {[%emt 0:02:17]} b6 {[%emt 0:00:25]} 42. Nb3 {[%emt 0:00:55]} Rc6 {[%emt 0:00:50]} 43. Nd2 {[%emt 0:00:13]} Be2 {[%emt 0:00:35]} 44. Nac4 {[%emt 0:00:57]} Bxc4 {[%emt 0:00:07]} 45. Nxc4 {[%emt 0:00:02]} Ke6 {[%emt 0:00:05]} 46. Nxb6 {[%emt 0:00:42]} f4 {[%emt 0:00:31]} 47. gxf4 {[%emt 0:01:51]} Kf5 {[%emt 0:01:18]} 48. Nc4 {[%emt 0:00:20]} Ra6 {[%emt 0:00:34]} 49. Kc5 {[%emt 0:06:29]} Ra4 {[%emt 0:02:06]} 50. Ne5 {[%emt 0:05:06]} Ra1 {[%emt 0:00:22]} 51. Nf7 {[%emt 0:00:14]} Kg4 {[%emt 0:01:34]} 52. Kd5 {[%emt 0:01:26]} Kxh4 {[%emt 0:00:56]} 53. Kxe4 {[%emt 0:00:12]} Ra5 {[%emt 0:00:50]} 54. Kf3 {[%emt 0:01:49]} Rb5 {[%emt 0:00:32]} 55. Ng5 {[%emt 0:00:30]} Rb7 {[%emt 0:00:14]} 56. Ne4 {[%emt 0:00:32]} Rf7 {[%emt 0:00:45]} 57. Bd4 {[%emt 0:03:39]} h6 {[%emt 0:00:44]} 58. Bf6+ {[%emt 0:02:19]} Kh3 {[%emt 0:00:18]} 59. Bg5 {[%emt 0:00:58]} Rh7 {[%emt 0:00:59]} 60. Bf6 {[%emt 0:01:36]} Rd7 {[%emt 0:00:25]} 61. Bc3 {[%emt 0:02:24]} Rd8 {[%emt 0:00:40]} 62. Bd2 {[%emt 0:00:13]} Rd3+ {[%emt 0:00:09]} 63. Be3 {[%emt 0:00:02]} Rd5 {[%emt 0:00:40]} 64. Nf6 {[%emt 0:00:24]} Rd8 {[%emt 0:00:43]} 65. Ng4 {[%emt 0:00:45]} h5 {[%emt 0:01:13]} 66. Ne5 {[%emt 0:00:39]} Rd6 {[%emt 0:00:05]} 67. Nf7 {[%emt 0:00:10]} Ra6 {[%emt 0:00:22]} 68. Ng5+ {[%emt 0:01:07]} Kh2 {[%emt 0:00:06]} 69. Ne4 {[%emt 0:03:26]} Ra5 {[%emt 0:00:20]} 70. Ng5 {[%emt 0:02:25]} Ra6 {[%emt 0:01:02]} 71. f5 {[%emt 0:10:26]} gxf5 {[%emt 0:06:27]} 72. Bf4+ {[%emt 0:00:00]} Kg1 {[%emt 0:00:00]} 1/2-1/2

[Event "6th Tulsi Lal Memorial NTCC 2080"]
[Site "Lalitpur"]
[Date "2024.01.10"]
[Round "5.2"]
[White "Chaudhary, Sushil"]
[Black "Dahal, Sushrut"]
[Result "1/2-1/2"]
[ECO "B20"]
[WhiteElo "1769"]
[BlackElo "1895"]
[Annotator "NA RC COMBH"]
[PlyCount "117"]
[EventDate "2024.01.03"]
[EventType "team-tourn"]
[EventCountry "NEP"]
[SourceTitle "playchess.com"]
[Source "ChessBase"]
[SourceQuality "1"]
[TimeControl "5400+30"]

1. e4 {[%emt 0:00:30]} c5 {[%emt 0:00:30]} 2. Bc4 e6 3. Nc3 {[%emt 0:02:43]} a6 {[%emt 0:00:00]} 4. d3 {[%emt 0:00:24]} b5 {[%emt 0:00:00]} 5. Bb3 {[%emt 0:00:04]} Bb7 {[%emt 0:00:19]} 6. a4 {[%emt 0:07:06]} b4 {[%emt 0:02:57]} 7. Nce2 {[%emt 0:03:19]} d5 {[%emt 0:00:27]} 8. Ng3 {[%emt 0:05:18]} dxe4 {[%emt 0:01:03]} 9. dxe4 {[%emt 0:00:14]} Qxd1+ {[%emt 0:00:40]} 10. Kxd1 {[%emt 0:00:18]} Nf6 {[%emt 0:01:29]} 11. f3 {[%emt 0:02:34]} Nc6 {[%emt 0:01:24]} 12. Be3 {[%emt 0:01:01]} O-O-O+ {[%emt 0:00:42]} 13. Ke2 {[%emt 0:00:38]} h5 {[%emt 0:02:06]} 14. Nh3 {[%emt 0:05:00]} h4 {[%emt 0:04:53]} 15. Nf1 {[%emt 0:00:34]} Nh7 {[%emt 0:04:47]} 16. Nd2 {[%emt 0:02:40]} Be7 {[%emt 0:06:12]} (16... Nd4+ $11 17. Bxd4 cxd4) 17. Rhd1 {[%emt 0:07:13]} Nd4+ {[%emt 0:02:50]} 18. Bxd4 {[%emt 0:03:13]} cxd4 {[%emt 0:04:40]} 19. Nc4 {[%emt 0:01:21]} Kc7 {[%emt 0:02:19]} 20. Ne5 {[%emt 0:09:06]} (20. Rd3 $5 {[%cal Ra1d1]}) 20... Rhf8 {[%emt 0:01:25]} 21. Nf4 {[%emt 0:00:42]} Bd6 {[%emt 0:02:55]} 22. Nfd3 {[%emt 0:01:50]} f5 {[%emt 0:11:08]} 23. exf5 {[%emt 0:09:08]} Rxf5 {[%emt 0:02:36]} 24. f4 {[%emt 0:04:38]} Bxe5 {[%emt 0:01:52]} 25. fxe5 {[%emt 0:00:21]} Ng5 {[%emt 0:02:26]} 26. Rf1 {[%emt 0:08:42]} Bxg2 {[%emt 0:06:51]} 27. Rxf5 {[%emt 0:01:23]} exf5 {[%emt 0:00:06]} 28. Rg1 {[%emt 0:00:46] [#]} h3 $1 {[%emt 0:00:39]} ({And not} 28... Bf3+ 29. Kd2 Bg4 30. Kc1 $17) 29. Nf4 {[%emt 0:00:38]} Bf3+ {[%emt 0:03:33]} 30. Kd3 {[%emt 0:02:15]} Bg4 {[%emt 0:00:34]} 31. Rg3 $2 {[%emt 0:02:39]} (31. Bd5 $1 $14) 31... Kc6 $17 {[%emt 0:03:42]} 32. e6 {[%emt 0:02:54]} Kc5 {[%emt 0:05:50]} 33. Bc4 {[%emt 0:05:59]} Ne4 {[%emt 0:00:39]} 34. Rxg4 {[%emt 0:07:35]} Nf2+ {[%emt 0:04:06]} 35. Ke2 {[%emt 0:00:34]} Nxg4 {[%emt 0:01:57]} 36. Bxa6 {[%emt 0:00:26]} Ne5 {[%emt 0:05:35]} 37. Nxh3 {[%emt 0:01:38]} Kd6 {[%emt 0:02:51]} 38. Ng5 {[%emt 0:01:25]} Ke7 {[%emt 0:01:49]} 39. Bb7 {[%emt 0:00:36]} Nc4 {[%emt 0:02:48]} 40. b3 {[%emt 0:01:29]} Na5 {[%emt 0:01:14]} 41. Ba6 {[%emt 0:00:29]} Kf6 {[%emt 0:01:46]} 42. h4 {[%emt 0:00:39]} Rh8 {[%emt 0:00:37]} 43. Nf7 {[%emt 0:00:40]} Rxh4 {[%emt 0:01:07]} 44. Bc8 {[%emt 0:00:17]} g5 {[%emt 0:01:45]} 45. Nd6 {[%emt 0:00:03]} Rh8 {[%emt 0:01:14]} 46. Bd7 {[%emt 0:00:08]} f4 {[%emt 0:02:02]} 47. Ne4+ {[%emt 0:00:28]} Ke7 {[%emt 0:00:29]} 48. Nxg5 {[%emt 0:00:02]} Nb7 {[%emt 0:00:14]} 49. Kf3 {[%emt 0:00:45]} Nc5 {[%emt 0:00:25]} 50. Bc6 {[%emt 0:00:08]} Nxe6 {[%emt 0:00:41]} 51. Nxe6 {[%emt 0:00:04]} Kxe6 {[%emt 0:00:13]} 52. a5 {[%emt 0:00:31]} Kd6 {[%emt 0:00:25]} 53. Be4 {[%emt 0:00:43]} Kc5 {[%emt 0:00:26]} 54. Bd3 {[%emt 0:00:11]} Rf8 {[%emt 0:01:08]} 55. a6 {[%emt 0:00:07]} Kb6 {[%emt 0:00:51]} 56. Bc4 {[%emt 0:00:10]} Rc8 {[%emt 0:00:41]} 57. Bd3 {[%emt 0:00:09]} Rf8 {[%emt 0:00:31]} 58. Bc4 {[%emt 0:00:24]} Rc8 {[%emt 0:00:23]} 59. Ke4 {[%emt 0:00:41]} 1/2-1/2

[Event "6th Tulsi Lal Memorial NTCC 2080"]
[Site "Lalitpur"]
[Date "2024.01.10"]
[Round "5.3"]
[White "Shrestha, Muhan Narshing"]
[Black "Subba, Shem"]
[Result "1-0"]
[ECO "B11"]
[WhiteElo "1693"]
[BlackElo "1658"]
[Annotator "NA RC COMBH"]
[PlyCount "85"]
[EventDate "2024.01.03"]
[EventType "team-tourn"]
[EventCountry "NEP"]
[SourceTitle "playchess.com"]
[Source "ChessBase"]
[SourceQuality "1"]
[TimeControl "5400+30"]

1. e4 c6 {[%emt 0:07:15]} 2. Nc3 {[%emt 0:01:20]} d5 {[%emt 0:00:23]} 3. Nf3 {[%emt 0:01:29]} a6 {[%emt 0:01:03]} 4. d4 {[%emt 0:01:05]} Bg4 {[%emt 0:00:27]} 5. e5 {[%emt 0:01:44]} e6 {[%emt 0:00:15]} 6. Be3 {[%emt 0:01:41]} Nd7 {[%emt 0:00:44]} 7. Be2 {[%emt 0:01:33]} Ne7 {[%emt 0:00:43]} 8. O-O {[%emt 0:01:07]} c5 {[%emt 0:00:41]} 9. dxc5 {[%emt 0:06:54]} Nf5 {[%emt 0:00:34]} 10. Bf4 {[%emt 0:05:40]} Bxc5 {[%emt 0:00:45]} 11. h3 {[%emt 0:01:23]} Bxf3 {[%emt 0:00:11]} 12. Bxf3 {[%emt 0:00:16]} Rc8 {[%emt 0:02:47]} 13. Bg4 {[%emt 0:08:17]} Nh4 {[%emt 0:06:32]} 14. Re1 {[%emt 0:02:39]} O-O {[%emt 0:02:53]} 15. Qd3 {[%emt 0:03:48]} Ng6 {[%emt 0:02:54]} 16. Bg3 {[%emt 0:02:14]} b5 {[%emt 0:02:53]} 17. a3 {[%emt 0:02:07]} Qg5 {[%emt 0:05:39]} 18. b4 {[%emt 0:07:33]} Ndxe5 {[%emt 0:01:06]} 19. Bxe5 {[%emt 0:11:06]} Nxe5 {[%emt 0:00:16]} 20. Qg3 {[%emt 0:00:09]} Nxg4 {[%emt 0:00:27]} 21. bxc5 {[%emt 0:00:15]} Rxc5 {[%emt 0:01:05]} 22. hxg4 {[%emt 0:01:35]} h5 {[%emt 0:02:47]} 23. Ne2 {[%emt 0:04:29]} Rxc2 {[%emt 0:00:37]} 24. Nd4 {[%emt 0:04:59]} Rc4 {[%emt 0:00:56]} 25. Nf3 {[%emt 0:00:59]} Qxg4 {[%emt 0:01:29]} 26. Qd6 {[%emt 0:00:39]} Rf4 {[%emt 0:07:04]} 27. Ne5 {[%emt 0:03:26]} Qf5 {[%emt 0:00:44]} 28. Nc6 {[%emt 0:00:46]} Re8 {[%emt 0:08:08]} 29. Ne7+ {[%emt 0:01:04]} Rxe7 {[%emt 0:00:28]} 30. Qxe7 {[%emt 0:00:09]} h4 {[%emt 0:09:40]} 31. Re3 {[%emt 0:05:54]} g5 {[%emt 0:08:28]} 32. Rf1 {[%emt 0:01:19]} d4 {[%emt 0:01:22]} 33. Rh3 {[%emt 0:01:23]} e5 {[%emt 0:01:46]} 34. f3 {[%emt 0:00:30]} d3 {[%emt 0:02:32]} 35. Re1 {[%emt 0:05:09]} Rc4 {[%emt 0:18:33]} 36. Qd8+ {[%emt 0:08:31]} Kg7 {[%emt 0:02:36]} 37. Rd1 {[%emt 0:00:43]} Rd4 {[%emt 0:00:06]} 38. Qa5 {[%emt 0:01:24]} Ra4 {[%emt 0:01:33]} 39. Qc3 {[%emt 0:00:15]} Qf4 {[%emt 0:00:10]} 40. Rxd3 {[%emt 0:01:49]} Rc4 {[%emt 0:00:11]} 41. Qd2 {[%emt 0:00:18]} Rc1+ {[%emt 0:00:15]} 42. Kf2 {[%emt 0:00:05]} Qc4 {[%emt 0:00:02]} 43. Qxg5+ {[%emt 0:00:20]} 1-0

[Event "6th Tulsi Lal Memorial NTCC 2080"]
[Site "Lalitpur"]
[Date "2024.01.10"]
[Round "5.4"]
[White "Shah, Anup Jung"]
[Black "Lohani, Sujana"]
[Result "1/2-1/2"]
[ECO "C55"]
[WhiteElo "1513"]
[BlackElo "1756"]
[Annotator "NA RC COMBH"]
[PlyCount "93"]
[EventDate "2024.01.03"]
[EventType "team-tourn"]
[EventCountry "NEP"]
[SourceTitle "playchess.com"]
[Source "ChessBase"]
[SourceQuality "1"]
[TimeControl "5400+30"]

1. e4 {[%emt 0:00:29]} g6 2. Nf3 Bg7 {[%emt 0:01:28]} 3. Bc4 {[%emt 0:01:44]} d6 {[%emt 0:01:57]} 4. d3 {[%emt 0:01:22]} Nf6 {[%emt 0:02:22]} 5. O-O {[%emt 0:01:53]} O-O {[%emt 0:01:00]} 6. Nc3 {[%emt 0:00:41]} Nc6 {[%emt 0:03:44]} 7. h3 {[%emt 0:02:18]} e5 {[%emt 0:04:20]} 8. Be3 {[%emt 0:02:44]} Be6 {[%emt 0:06:29]} 9. Bb3 {[%emt 0:03:32]} h6 {[%emt 0:11:52]} 10. Qd2 {[%emt 0:06:04]} Kh7 {[%emt 0:00:20]} 11. Ne2 {[%emt 0:01:49]} d5 {[%emt 0:00:38]} 12. exd5 {[%emt 0:04:05]} Bxd5 {[%emt 0:03:42]} 13. Nh2 {[%emt 0:04:24]} Qe7 {[%emt 0:10:04]} 14. Rfe1 {[%emt 0:07:09]} Bxb3 {[%emt 0:04:13]} 15. axb3 {[%emt 0:01:56]} Nd5 {[%emt 0:00:16]} 16. Nc3 {[%emt 0:08:20]} Nxe3 {[%emt 0:00:49]} 17. Qxe3 {[%emt 0:03:25]} Qd7 {[%emt 0:02:02]} 18. Qc5 {[%emt 0:06:03]} Rad8 {[%emt 0:09:11]} 19. Nf3 {[%emt 0:07:00]} Rfe8 {[%emt 0:02:21]} 20. Rad1 {[%emt 0:02:12]} a6 {[%emt 0:02:06]} 21. Qc4 {[%emt 0:05:50]} f5 {[%emt 0:05:34]} 22. b4 {[%emt 0:04:59]} b5 {[%emt 0:10:07]} 23. Qb3 {[%emt 0:04:49]} Qd6 {[%emt 0:02:06]} 24. Na2 {[%emt 0:04:14]} Nd4 {[%emt 0:06:19]} 25. Nxd4 {[%emt 0:01:22]} exd4 {[%emt 0:00:32]} 26. Qf7 {[%emt 0:15:06]} Rf8 {[%emt 0:01:18]} 27. Qe7 {[%emt 0:00:00]} Rf6 {[%emt 0:01:25]} 28. Qxd6 {[%emt 0:00:00]} Rfxd6 {[%emt 0:00:20]} 29. Re7 {[%emt 0:00:00]} R8d7 {[%emt 0:00:22]} 30. Rde1 {[%emt 0:00:00]} Kg8 {[%emt 0:01:44]} 31. Rxd7 {[%emt 0:00:00]} Rxd7 {[%emt 0:00:00]} 32. Re8+ {[%emt 0:00:00]} Kf7 {[%emt 0:00:04]} 33. Ra8 {[%emt 0:00:00]} Rd6 {[%emt 0:00:54]} 34. Kf1 {[%emt 0:00:00]} Rc6 {[%emt 0:02:21]} 35. c3 {[%emt 0:00:00]} dxc3 {[%emt 0:02:02]} 36. bxc3 {[%emt 0:00:00]} Bxc3 {[%emt 0:00:45]} 37. Nxc3 {[%emt 0:00:00]} Rxc3 {[%emt 0:00:07]} 38. Rxa6 {[%emt 0:00:00]} Rxd3 {[%emt 0:00:18]} 39. Rc6 {[%emt 0:00:00]} Rd4 {[%emt 0:02:08]} 40. Rxc7+ {[%emt 0:00:00]} Kf6 {[%emt 0:00:35]} 41. Rc6+ {[%emt 0:00:00]} Kg5 {[%emt 0:00:08]} 42. Rc5 {[%emt 0:00:00]} Rxb4 {[%emt 0:00:10]} 43. g4 {[%emt 0:00:08]} h5 {[%emt 0:01:15]} 44. gxf5 {[%emt 0:00:22]} gxf5 {[%emt 0:00:06]} 45. Kg2 {[%emt 0:00:18]} Rb3 {[%emt 0:00:29]} 46. Rc8 {[%emt 0:00:30]} Kf4 {[%emt 0:01:35]} 47. Rh8 {[%emt 0:00:29]} 1/2-1/2